fUSD/lending_fUSD_20250720
["ID","MTS","AMOUNT","RATE_DAILY","PERIOD"]
[373409689,1752989451294,-480.0,0.00019397,2]
[373409691,1752989451303,-151.0,0.00019397,2]
[373409693,1752989451312,-480.0,0.00019397,2]
[373409695,1752989451321,-480.0,0.00019397,2]
[373409697,1752989451331,-480.0,0.00019397,2]
[373409699,1752989451339,-480.0,0.00019397,2]
[373409701,1752989451348,-151.0,0.00019397,2]
[373409703,1752989451358,-480.0,0.00019397,2]
[373409706,1752989451367,-682.77,0.00019397,2]
[373409707,1752989451376,-151.0,0.00019397,2]
[373409709,1752989451386,-540.39,0.00019397,2]
[373409711,1752989451395,-480.0,0.00019397,2]
[373409713,1752989451404,-151.0,0.00019397,2]
[373409716,1752989451414,-480.0,0.00019397,2]
[373409718,1752989451423,-352.0471816,0.00019397,2]
[373409720,1752989451432,-480.0,0.00019397,2]
[373409722,1752989451442,-480.0,0.00019397,2]
[373409724,1752989451451,-480.0,0.00019397,2]
[373409726,1752989451460,-611.86,0.00019397,2]
[373409728,1752989451470,-480.0,0.00019397,2]
[373409729,1752989451479,-847.28,0.00019397,2]
[373409731,1752989451490,-811.98,0.00019397,2]
[373409733,1752989451500,-480.0,0.00019397,2]
[373409736,1752989451509,-480.0,0.00019397,2]
[373409738,1752989451519,-480.0,0.00019397,2]
[373409740,1752989451528,-480.0,0.00019397,2]
[373409741,1752989451538,-607.67,0.00019397,2]
[373409744,1752989451549,-151.0,0.00019397,2]
[373409745,1752989451559,-572.32,0.00019397,2]
[373409747,1752989451568,-480.0,0.00019397,2]
[373409749,1752989451577,-251.64599152,0.00019397,2]
[373409751,1752989451587,-546.47740691,0.00019397,2]
[373409753,1752989451597,-480.0,0.00019397,2]
[373409755,1752989451607,-243.70556813,0.00019397,2]
[373409757,1752989451617,-480.0,0.00019397,2]
[373409759,1752989451626,-531.57598337,0.00019397,2]
[373409761,1752989451637,-480.0,0.00019397,2]
[373409763,1752989451646,-294.78255537,0.00019397,2]
[373409765,1752989451655,-480.0,0.00019397,2]
[373409767,1752989451665,-675.62,0.00019397,2]
[373409769,1752989451674,-480.0,0.00019397,2]
[373409771,1752989451684,-580.81,0.00019397,2]
[373409773,1752989451693,-480.0,0.00019397,2]
[373409775,1752989451703,-480.0,0.00019397,2]
[373409777,1752989451713,-480.0,0.00019397,2]
[373409779,1752989451723,-180.11606244,0.00019397,2]
[373409781,1752989451733,-480.0,0.00019397,2]
[373409783,1752989451743,-480.0,0.00019397,2]
[373409785,1752989451752,-480.0,0.00019397,2]
[373409787,1752989451761,-151.0,0.00019397,2]
[373409789,1752989451770,-480.0,0.00019397,2]
[373409791,1752989451779,-480.0,0.00019397,2]
[373409793,1752989451789,-480.0,0.00019397,2]
[373409795,1752989451798,-753.07,0.00019397,2]
[373409797,1752989451807,-480.0,0.00019397,2]
[373409800,1752989451818,-480.0,0.00019397,2]
[373409802,1752989451827,-619.31,0.00019397,2]
[373409804,1752989451836,-1339.47,0.00019397,2]
[373409805,1752989451846,-480.0,0.00019397,2]
[373409807,1752989451855,-1158.17,0.00019397,2]
[373409810,1752989451864,-601.87,0.00019397,2]
[373409812,1752989451874,-480.0,0.00019397,2]
[373409814,1752989451883,-480.0,0.00019397,2]
[373409815,1752989451892,-480.0,0.00019397,2]
[373409817,1752989451901,-480.0,0.00019397,2]
[373409819,1752989451910,-480.0,0.00019397,2]
[373409821,1752989451920,-480.0,0.00019397,2]
[373409823,1752989451929,-593.59,0.00019397,2]
[373409825,1752989451938,-835.59,0.00019397,2]
[373409826,1752989451947,-151.0,0.00019397,2]
[373409827,1752989451957,-480.0,0.00019397,2]
[373409828,1752989451966,-480.0,0.00019397,2]
[373409829,1752989451975,-516.69,0.00019397,2]
[373409831,1752989451985,-480.0,0.00019397,2]
[373409833,1752989451993,-324.63,0.00019397,2]
[373409835,1752989452003,-231.81036578,0.00019397,2]
[373409837,1752989452013,-152.164424,0.00019397,2]
[373409839,1752989452022,-480.0,0.00019397,2]
[373409841,1752989452036,-155.034149,0.00019397,2]
[373409843,1752989452045,-480.0,0.00019397,2]
[373409845,1752989452055,-551.83531676,0.00019397,2]
[373409847,1752989452065,-480.0,0.00019397,2]
[373409849,1752989452074,-480.0,0.00019397,2]
[373409851,1752989452083,-848.23,0.00019397,2]
[373409853,1752989452092,-480.0,0.00019397,2]
[373409855,1752989452101,-480.0,0.00019397,2]
[373409857,1752989452110,-480.0,0.00019397,2]
[373409859,1752989452121,-480.0,0.00019397,2]
[373409861,1752989452130,-480.0,0.00019397,2]
[373409863,1752989452139,-480.0,0.00019397,2]
[373409865,1752989452149,-153.666057,0.00019397,2]
[373409873,1752989452212,-480.0,0.00019397,2]
[373409875,1752989452221,-480.0,0.00019397,2]
[373409877,1752989452230,-480.0,0.00019397,2]
[373409879,1752989452240,-528.82,0.00019397,2]
[373409881,1752989452249,-480.0,0.00019397,2]
[373409883,1752989452258,-480.0,0.00019397,2]
[373409885,1752989452267,-334.65180793,0.00019397,2]
[373409887,1752989452276,-480.0,0.00019397,2]
[373409889,1752989452285,-480.0,0.00019397,2]
[373409891,1752989452294,-480.0,0.00019397,2]
[373409893,1752989452304,-480.0,0.00019397,2]
[373409895,1752989452313,-480.0,0.00019397,2]
[373409896,1752989452322,-480.0,0.00019397,2]
[373409897,1752989452331,-781.89,0.00019397,2]
[373409898,1752989452340,-480.0,0.00019397,2]
[373409899,1752989452349,-680.69,0.00019397,2]
[373409900,1752989452358,-480.0,0.00019397,2]
[373409901,1752989452368,-480.0,0.00019397,2]
[373409902,1752989452377,-565.07,0.00019397,2]
[373409903,1752989452386,-693.28,0.00019397,2]
[373409904,1752989452394,-548.871019,0.00019397,2]
[373409905,1752989452403,-480.0,0.00019397,2]
[373409906,1752989452411,-520.13850886,0.00019397,2]
[373409907,1752989452421,-480.0,0.00019397,2]
[373409908,1752989452429,-482.17,0.00019397,2]
[373409909,1752989452439,-500.0,0.00019397,2]
[373409910,1752989452448,-480.0,0.00019397,2]
[373409911,1752989452458,-151.0,0.00019397,2]
[373409912,1752989452467,-480.0,0.00019397,2]
[373409913,1752989452476,-480.0,0.00019397,2]
[373409914,1752989452485,-151.0,0.00019397,2]
[373409916,1752989452494,-585.89,0.00019397,2]
[373409917,1752989452503,-151.0,0.00019397,2]
[373409918,1752989452512,-480.0,0.00019397,2]
[373409919,1752989452521,-218.02852956,0.00019397,2]
[373409920,1752989452531,-480.0,0.00019397,2]
[373409921,1752989452541,-500.0,0.00019397,2]
[373409922,1752989452550,-151.0,0.00019397,2]
[373409923,1752989452560,-284.4,0.00019397,2]
[373409924,1752989452570,-1320.33,0.00019397,2]
[373409925,1752989452579,-500.0,0.00019397,2]
[373409926,1752989452587,-530.73,0.00019397,2]
[373409927,1752989452596,-151.0,0.00019397,2]
[373409928,1752989452606,-480.0,0.00019397,2]
[373409929,1752989452615,-611.3405079,0.00019397,2]
[373409930,1752989452624,-237.795874,0.00019397,2]
[373409931,1752989452633,-480.0,0.00019397,2]
[373409932,1752989452642,-480.0,0.00019397,2]
[373409933,1752989452651,-396.62207241,0.00019397,2]
[373409934,1752989452660,-480.0,0.00019397,2]
[373409935,1752989452670,-480.0,0.00019397,2]
[373409936,1752989452679,-480.0,0.00019397,2]
[373409937,1752989452688,-480.0,0.00019397,2]
[373409938,1752989452697,-480.0,0.00019397,2]
[373409939,1752989452706,-502.43,0.00019397,2]
[373409940,1752989452716,-2437.85,0.00019397,2]
[373409941,1752989452725,-2705.91,0.00019397,2]
[373409942,1752989452734,-480.0,0.00019397,2]
[373409943,1752989452743,-480.0,0.00019397,2]
[373409944,1752989452752,-480.0,0.00019397,2]
[373409945,1752989452761,-259.98162793,0.00019397,2]
[373409946,1752989452771,-165.985952,0.00019397,2]
[373409947,1752989452780,-480.0,0.00019397,2]
[373409948,1752989452789,-151.0,0.00019397,2]
[373409949,1752989452798,-480.0,0.00019397,2]
[373409950,1752989452807,-480.0,0.00019397,2]
[373409951,1752989452816,-480.0,0.00019397,2]
[373409952,1752989452825,-845.02,0.00019397,2]
[373409953,1752989452834,-151.0,0.00019397,2]
[373409954,1752989452843,-487.14,0.00019397,2]
[373409955,1752989452852,-557.8,0.00019397,2]
[373409956,1752989452862,-862.06,0.00019397,2]
[373409957,1752989452871,-480.0,0.00019397,2]
[373409958,1752989452880,-1998.0,0.00019397,2]
[373409959,1752989452890,-536.7,0.00019397,2]
[373409960,1752989452899,-567.96,0.00019397,2]
[373409961,1752989452908,-480.0,0.00019397,2]
[373409962,1752989452917,-487.95,0.00019397,2]
[373409963,1752989452926,-480.0,0.00019397,2]
[373409964,1752989452935,-480.0,0.00019397,2]
[373409965,1752989452944,-480.0,0.00019397,2]
[373409966,1752989452952,-920.6,0.00019397,2]
[373409967,1752989452961,-480.0,0.00019397,2]
[373409968,1752989452970,-1882.7,0.00019397,2]
[373409969,1752989452979,-665.71,0.00019397,2]
[373409970,1752989452988,-1170.57,0.00019397,2]
[373409971,1752989452997,-991.0,0.00019397,2]
[373409972,1752989453006,-546.09,0.00019397,2]
[373409973,1752989453015,-1122.48,0.00019397,2]
[373409974,1752989453025,-507.4,0.00019397,2]
[373409975,1752989453038,-480.0,0.00019397,2]
[373409976,1752989453047,-1064.41,0.00019397,2]
[373409977,1752989453055,-480.0,0.00019397,2]
[373409978,1752989453065,-620.05,0.00019397,2]
[373409979,1752989453075,-1197.86,0.00019397,2]
[373409980,1752989453084,-591.75,0.00019397,2]
[373409981,1752989453094,-1679.81,0.00019397,2]
[373409982,1752989453104,-151.0,0.00019397,2]
[373409983,1752989453113,-645.32,0.00019397,2]
[373409984,1752989453123,-480.0,0.00019397,2]
[373409985,1752989453132,-151.0,0.00019397,2]
[373409986,1752989453142,-1005.5,0.00019397,2]
[373409987,1752989453151,-480.0,0.00019397,2]
[373409988,1752989453160,-480.0,0.00019397,2]
[373409989,1752989453169,-1103.07,0.00019397,2]
[373409990,1752989453178,-947.41,0.00019397,2]
[373409991,1752989453187,-480.0,0.00019397,2]
[373409992,1752989453196,-151.0,0.00019397,2]
[373409993,1752989453205,-480.0,0.00019397,2]
[373409994,1752989453214,-902.23,0.00019397,2]
[373409995,1752989453223,-480.0,0.00019397,2]
[373409996,1752989453233,-823.73,0.00019397,2]
[373409997,1752989453242,-480.0,0.00019397,2]
[373409998,1752989453252,-830.46,0.00019397,2]
[373409999,1752989453261,-151.0,0.00019397,2]
[373410000,1752989453271,-232.08076568,0.00019397,2]
[373410001,1752989453280,-500.0,0.00019397,2]
[373410002,1752989453289,-495.66,0.00019397,2]
[373410003,1752989453299,-1153.0,0.00019397,2]
[373410004,1752989453309,-823.26,0.00019397,2]
[373410005,1752989453318,-605.81,0.00019397,2]
[373410006,1752989453327,-151.0,0.00019397,2]
[373410007,1752989453336,-480.0,0.00019397,2]
[373410008,1752989453346,-480.0,0.00019397,2]
[373410009,1752989453355,-480.0,0.00019397,2]
[373410010,1752989453364,-455.84,0.00019397,2]
[373410011,1752989453373,-2236.11,0.00019397,2]
[373410012,1752989453383,-480.0,0.00019397,2]
[373410013,1752989453393,-822.96,0.00019397,2]
[373410014,1752989453403,-481.9,0.00019397,2]
[373410015,1752989453412,-648.25,0.00019397,2]
[373410016,1752989453422,-480.0,0.00019397,2]
[373410017,1752989453431,-480.0,0.00019397,2]
[373410018,1752989453440,-705.02,0.00019397,2]
[373410019,1752989453449,-1258.95,0.00019397,2]
[373410020,1752989453458,-480.0,0.00019397,2]
[373410021,1752989453467,-492.36,0.00019397,2]
[373410022,1752989453476,-1019.07,0.00019397,2]
[373410023,1752989453485,-480.0,0.00019397,2]
[373410024,1752989453494,-170.952122,0.00019397,2]
[373410025,1752989453503,-580.94,0.00019397,2]
[373410026,1752989453513,-480.0,0.00019397,2]
[373410027,1752989453522,-480.0,0.00019397,2]
[373410028,1752989453531,-170.952122,0.00019397,2]
[373410029,1752989453541,-480.0,0.00019397,2]
[373410030,1752989453550,-551.42,0.00019397,2]
[373410031,1752989453559,-480.0,0.00019397,2]
[373410032,1752989453569,-480.0,0.00019397,2]
[373410033,1752989453578,-2183.79,0.00019397,2]
[373410034,1752989453587,-480.0,0.00019397,2]
[373410035,1752989453596,-480.0,0.00019397,2]
[373410036,1752989453606,-721.71,0.00019397,2]
[373410037,1752989453615,-3940.47,0.00019397,2]
[373410038,1752989453624,-1467.13,0.00019397,2]
[373410039,1752989453633,-978.15,0.00019397,2]
[373410040,1752989453642,-735.45,0.00019397,2]
[373410041,1752989453652,-480.0,0.00019397,2]
[373410042,1752989453661,-480.0,0.00019397,2]
[373410043,1752989453671,-513.27,0.00019397,2]
[373410044,1752989453680,-480.0,0.00019397,2]
[373410045,1752989453689,-1837.11,0.00019397,2]
[373410046,1752989453699,-151.0,0.00019397,2]
[373410047,1752989453709,-995.79,0.00019397,2]
[373410048,1752989453718,-480.0,0.00019397,2]
[373410049,1752989453727,-618.52,0.00019397,2]
[373410050,1752989453737,-796.25,0.00019397,2]
[373410051,1752989453746,-480.0,0.00019397,2]
[373410052,1752989453755,-604.84,0.00019397,2]
[373410053,1752989453765,-480.0,0.00019397,2]
[373410054,1752989453774,-581.68,0.00019397,2]
[373410055,1752989453783,-151.0,0.00019397,2]
[373410056,1752989453792,-1231.45,0.00019397,2]
[373410057,1752989453801,-789.99,0.00019397,2]
[373410058,1752989453810,-480.0,0.00019397,2]
[373410059,1752989453819,-1780.72,0.00019397,2]
[373410060,1752989453828,-1111.42,0.00019397,2]
[373410061,1752989453837,-705.48,0.00019397,2]
[373410062,1752989453846,-3284.08,0.00019397,2]
[373410063,1752989453856,-480.0,0.00019397,2]
[373410064,1752989453865,-8037.86,0.00019397,2]
[373410065,1752989453874,-591.8410256,0.00019397,2]
[373410066,1752989453884,-3107.59,0.00019397,2]
[373410067,1752989453893,-480.0,0.00019397,2]
[373410068,1752989453902,-1037.79,0.00019397,2]
[373410069,1752989453911,-480.0,0.00019397,2]
[373410070,1752989453920,-1098.54,0.00019397,2]
[373410071,1752989453929,-599.29,0.00019397,2]
[373410072,1752989453938,-609.77,0.00019397,2]
[373410073,1752989453948,-480.0,0.00019397,2]
[373410074,1752989453957,-480.0,0.00019397,2]
[373410075,1752989453966,-673.73,0.00019397,2]
[373410076,1752989453975,-661.0,0.00019397,2]
[373410077,1752989453984,-480.0,0.00019397,2]
[373410078,1752989453993,-500.0,0.00019397,2]
[373410079,1752989454003,-480.0,0.00019397,2]
[373410080,1752989454012,-500.0,0.00019397,2]
[373410081,1752989454021,-480.0,0.00019397,2]
[373410082,1752989454033,-822.08,0.00019397,2]
[373410083,1752989454042,-500.0,0.00019397,2]
[373410084,1752989454052,-638.51,0.00019397,2]
[373410085,1752989454061,-475.02679514,0.00019397,2]
[373410086,1752989454071,-480.0,0.00019397,2]
[373410087,1752989454080,-480.0,0.00019397,2]
[373410088,1752989454090,-480.0,0.00019397,2]
[373410089,1752989454099,-150.0,0.00019397,2]
[373410090,1752989454108,-150.0,0.00019397,2]
[373410091,1752989454117,-2821.88,0.00019397,2]
[373410092,1752989454126,-500.0,0.00019397,2]
[373410093,1752989454135,-3713.37,0.00019397,2]
[373410094,1752989454144,-480.0,0.00019397,2]
[373410095,1752989454153,-480.0,0.00019397,2]
[373410096,1752989454162,-861.55,0.00019397,2]
[373410097,1752989454172,-1433.3,0.00019397,2]
[373410098,1752989454181,-151.07551686,0.00019397,2]
[373410099,1752989454190,-480.0,0.00019397,2]
[373410100,1752989454199,-150.0,0.00019397,2]
[373410101,1752989454208,-150.0,0.00019397,2]
[373410102,1752989454217,-490.4,0.00019397,2]
[373410103,1752989454226,-151.0,0.00019397,2]
[373410104,1752989454235,-480.0,0.00019397,2]
[373410105,1752989454244,-4176.0,0.00019397,2]
[373410106,1752989454253,-480.0,0.00019397,2]
[373410107,1752989454262,-970.96,0.00019397,2]
[373410108,1752989454271,-480.0,0.00019397,2]
[373410109,1752989454281,-1110.81,0.00019397,2]
[373410110,1752989454290,-151.0,0.00019397,2]
[373410111,1752989454299,-924.98,0.00019397,2]
[373410112,1752989454308,-488.83,0.00019397,2]
[373410113,1752989454317,-151.0,0.00019397,2]
[373410114,1752989454326,-1143.92,0.00019397,2]
[373410115,1752989454335,-480.0,0.00019397,2]
[373410116,1752989454344,-151.0,0.00019397,2]
[373410117,1752989454354,-596.0,0.00019397,2]
[373410118,1752989454363,-1865.06,0.00019397,2]
[373410119,1752989454372,-1942.24,0.00019397,2]
[373410120,1752989454382,-480.0,0.00019397,2]
[373410121,1752989454392,-480.0,0.00019397,2]
[373410122,1752989454401,-480.0,0.00019397,2]
[373410123,1752989454410,-480.0,0.00019397,2]
[373410124,1752989454420,-2661.07,0.00019397,2]
[373410125,1752989454430,-151.0,0.00019397,2]
[373410126,1752989454439,-1386.53,0.00019397,2]
[373410127,1752989454449,-250.65961067,0.00019397,2]
[373410128,1752989454458,-1282.06,0.00019397,2]
[373410129,1752989454467,-480.0,0.00019397,2]
[373410130,1752989454477,-480.0,0.00019397,2]
[373410131,1752989454486,-662.17,0.00019397,2]
[373410132,1752989454495,-480.0,0.00019397,2]
[373410133,1752989454504,-294.14422872,0.00019397,2]
[373410134,1752989454513,-548.66,0.00019397,2]
[373410135,1752989454523,-500.0,0.00019397,2]
[373410136,1752989454532,-607.57,0.00019397,2]
[373410137,1752989454542,-151.0,0.00019397,2]
[373410138,1752989454551,-150.0,0.00019397,2]
[373410139,1752989454560,-500.0,0.00019397,2]
[373410140,1752989454570,-302.531764,0.00019397,2]
[373410141,1752989454579,-1091.85,0.00019397,2]
[373410142,1752989454588,-480.0,0.00019397,2]
[373410143,1752989454598,-480.0,0.00019397,2]
[373410144,1752989454608,-460.0,0.00019397,2]
[373410145,1752989454617,-151.0,0.00019397,2]
[373410146,1752989454626,-1464.86,0.00019397,2]
[373410147,1752989454635,-483.06,0.00019397,2]
[373410148,1752989454645,-480.0,0.00019397,2]
[373410149,1752989454654,-5718.46,0.00019397,2]
[373410150,1752989454663,-302.531764,0.00019397,2]
[373410151,1752989454673,-480.0,0.00019397,2]
[373410152,1752989454683,-1012.96,0.00019397,2]
[373410153,1752989454695,-480.0,0.00019397,2]
[373410154,1752989454704,-480.0,0.00019397,2]
[373410155,1752989454713,-150.0,0.00019397,2]
[373410156,1752989454723,-786.49,0.00019397,2]
[373410157,1752989454732,-994.74,0.00019397,2]
[373410158,1752989454741,-635.8,0.00019397,2]
[373410159,1752989454751,-150.0,0.00019397,2]
[373410160,1752989454760,-489.06,0.00019397,2]
[373410161,1752989454770,-282.19254633,0.00019397,2]
[373410162,1752989454779,-500.0,0.00019397,2]
[373410163,1752989454788,-650.01,0.00019397,2]
[373410164,1752989454798,-425.87068988,0.00019397,2]
[373410165,1752989454807,-480.0,0.00019397,2]
[373410166,1752989454817,-500.0,0.00019397,2]
[373410167,1752989454826,-856.56,0.00019397,2]
[373410168,1752989454836,-1960.62,0.00019397,2]
[373410169,1752989454845,-500.0,0.00019397,2]
[373410170,1752989454854,-480.0,0.00019397,2]
[373410171,1752989454863,-500.0,0.00019397,2]
[373410172,1752989454872,-480.0,0.00019397,2]
[373410173,1752989454882,-480.0,0.00019397,2]
[373410174,1752989454893,-480.0,0.00019397,2]
[373410175,1752989454902,-358.0,0.00019397,2]
[373410176,1752989454911,-568.77,0.00019397,2]
[373410177,1752989454920,-1056.0,0.00019397,2]
[373410178,1752989454929,-338.99292664,0.00019397,2]
[373410179,1752989454938,-480.0,0.00019397,2]
[373410180,1752989454947,-480.0,0.00019397,2]
[373410181,1752989454955,-484.36,0.00019397,2]
[373410182,1752989454965,-662.08,0.00019397,2]
[373410183,1752989454974,-3491.99,0.00019397,2]
[373410184,1752989454983,-2617.19,0.00019397,2]
[373410185,1752989454992,-480.0,0.00019397,2]
[373410186,1752989455001,-151.0,0.00019397,2]
[373410187,1752989455010,-838.32,0.00019397,2]
[373410188,1752989455019,-150.0,0.00019397,2]
[373410189,1752989455031,-562.74,0.00019397,2]
[373410190,1752989455040,-480.0,0.00019397,2]
[373410191,1752989455049,-480.0,0.00019397,2]
[373410192,1752989455058,-480.0,0.00019397,2]
[373410193,1752989455067,-631.6,0.00019397,2]
[373410194,1752989455077,-480.0,0.00019397,2]
[373410195,1752989455086,-151.2614676,0.00019397,2]
[373410196,1752989455095,-1016.15,0.00019397,2]
[373410197,1752989455109,-480.0,0.00019397,2]
[373410198,1752989455119,-21544.09,0.00019397,2]
[373410199,1752989455127,-151.0,0.00019397,2]
[373410200,1752989455137,-600.54,0.00019397,2]
[373410201,1752989455146,-526.14,0.00019397,2]
[373410202,1752989455155,-507.47437058,0.00019399,2]
[373410203,1752989455164,-782.2,0.00019399,2]
[373410204,1752989455173,-780.52,0.00019399,2]
[373410205,1752989455183,-14014.07651093,0.000194,3]
[373410206,1752989455192,-67028.60853533,0.000194,2]
[373410207,1752989455201,-152.80539,0.000194,2]
[373410208,1752989455210,-151.0,0.000194,2]
[373410209,1752989455219,-458.36,0.00019407,2]
[373410210,1752989455227,-151.0,0.00019417,2]
[373410211,1752989455236,-151.0,0.00019417,2]
[373410212,1752989455245,-151.0,0.00019417,2]
[373410213,1752989455254,-151.0,0.00019417,2]
[373410214,1752989455263,-151.0,0.00019417,2]
[373410215,1752989455272,-160.08257835,0.00019428,2]
[373410216,1752989455282,-1851.0135884,0.00019443,2]
[373410217,1752989455291,-450.82588241,0.00019443,2]
[373410218,1752989455300,-259.8365768,0.00019452,2]
[373410219,1752989455309,-150.0,0.00019462,2]
[373410220,1752989455318,-568.51,0.00019462,2]
[373410221,1752989455327,-10000.0,0.00019463,7]
[373410222,1752989455336,-210.86573235,0.00019463,7]
[373410223,1752989455346,-476.8747822,0.00019463,7]
[373410224,1752989455355,-168.0,0.00019485,2]
[373410225,1752989455363,-498.0,0.00019487,2]
[373410226,1752989455373,-500.0,0.00019499,2]
[373410227,1752989455382,-500.0,0.00019499,2]
[373410228,1752989455391,-500.0,0.00019499,2]
[373410229,1752989455401,-500.0,0.00019499,2]
[373410230,1752989455410,-568.51,0.00019499,2]
[373410231,1752989455419,-14736.21012783,0.000195,2]
[373410232,1752989455428,-391074.0,0.000195,2]
[373410233,1752989455439,-151.0,0.000195,2]
[373410234,1752989455449,-151.0,0.000195,2]
[373410235,1752989455458,-151.0,0.000195,2]
[373410236,1752989455467,-151.0,0.000195,2]
[373410237,1752989455477,-151.0,0.000195,2]
[373410238,1752989455487,-151.0,0.000195,2]
[373410239,1752989455496,-151.0,0.000195,2]
[373410240,1752989455507,-151.0,0.000195,2]
[373410241,1752989455517,-151.0,0.000195,2]
[373410242,1752989455527,-271.818218,0.000195,2]
[373410243,1752989455536,-151.0,0.000195,2]
[373410244,1752989455546,-151.0,0.000195,2]
[373410245,1752989455555,-151.0,0.000195,2]
[373410246,1752989455564,-151.0,0.000195,2]
[373410247,1752989455575,-151.0,0.000195,2]
[373410248,1752989455584,-151.0,0.000195,2]
[373410249,1752989455594,-151.0,0.000195,2]
[373410250,1752989455603,-151.0,0.000195,2]
[373410251,1752989455613,-151.0,0.000195,2]
[373410252,1752989455622,-151.0,0.000195,2]
[373410253,1752989455632,-548.871019,0.000195,2]
[373410254,1752989455642,-548.871019,0.000195,2]
[373410255,1752989455652,-548.871019,0.000195,2]
[373410256,1752989455661,-548.871019,0.000195,2]
[373410257,1752989455670,-151.0,0.000195,2]
[373410258,1752989455679,-151.0,0.000195,2]
[373410259,1752989455689,-252.132458,0.000195,2]
[373410260,1752989455699,-184.107189,0.000195,2]
[373410261,1752989455709,-151.0,0.000195,2]
[373410262,1752989455718,-151.0,0.000195,2]
[373410263,1752989455728,-168.382688,0.000195,2]
[373410264,1752989455738,-151.0,0.000195,2]
[373410265,1752989455747,-151.0,0.000195,2]
[373410266,1752989455758,-151.0,0.000195,2]
[373410267,1752989455768,-151.0,0.000195,2]
[373410268,1752989455778,-151.0,0.000195,2]
[373410269,1752989455788,-151.0,0.000195,2]
[373410270,1752989455798,-151.0,0.000195,2]
[373410271,1752989455808,-151.0,0.000195,2]
[373410272,1752989455818,-170.952122,0.000195,2]
[373410273,1752989455827,-170.952122,0.000195,2]
[373410274,1752989455836,-170.952122,0.000195,2]
[373410275,1752989455846,-170.952122,0.000195,2]
[373410276,1752989455856,-189.368757,0.000195,2]
[373410277,1752989455865,-151.0,0.000195,2]
[373410278,1752989455874,-151.0,0.000195,2]
[373410279,1752989455884,-151.0,0.000195,2]
[373410280,1752989455895,-151.0,0.000195,2]
[373410281,1752989455904,-151.0,0.000195,2]
[373410282,1752989455914,-151.0,0.000195,2]
[373410283,1752989455925,-151.0,0.000195,2]
[373410284,1752989455935,-151.0,0.000195,2]
[373410285,1752989455945,-193.193928,0.000195,2]
[373410286,1752989455956,-151.0,0.000195,2]
[373410287,1752989455966,-1000.0,0.000195,2]
[373410288,1752989455975,-151.0,0.000195,2]
[373410289,1752989455987,-302.531764,0.000195,2]
[373410290,1752989455998,-302.531764,0.000195,2]
[373410291,1752989456009,-151.0,0.000195,2]
[373410292,1752989456019,-302.531764,0.000195,2]
[373410293,1752989456029,-302.531764,0.000195,2]